[Event "XIV American Continental-ch 2019"]
[Site "Sao Paulo"]
[Date "2019.07.06"]
[Round "1.24"]
[White "Perdomo, Leandro"]
[Black "Freitas Capiberibe, Andre Antoni"]
[Result "1-0"]
[ECO "A44"]
[WhiteElo "2468"]
[BlackElo "2024"]
[Annotator "RC"]
[PlyCount "127"]
[EventDate "2019.07.05"]
[EventType "swiss"]
[EventCountry "BRA"]
[SourceTitle "playchess.com"]
[Source "ChessBase"]
[SourceQuality "1"]
[TimeControl "40/5400+30:1800+30"]

1. d4 {[%emt 0:00:00]} g6 {[%emt 0:00:12]} 2. c4 {[%emt 0:00:00]} Bg7 {[%emt 0:00:18]} 3. e4 {[%emt 0:00:57]} c5 {[%emt 0:00:17]} 4. d5 {[%emt 0:00:14]} d6 {[%emt 0:04:23]} 5. Nf3 {[%emt 0:01:03]} e5 {[%emt 0:04:00]} 6. Nc3 {[%emt 0:01:01]} Ne7 {[%emt 0:00:42]} 7. h4 {[%emt 0:08:50]} h6 {[%emt 1:23:38]} 8. Nd2 {[%emt 1:21:55]} f5 {[%emt 0:00:00]} 9. h5 {[%emt 0:00:00]} g5 {[%emt 0:00:00]} 10. a3 {[%emt 0:00:00]} O-O {[%emt 0:00:00]} 11. Bd3 {[%emt 0:00:00]} Nd7 {[%emt 0:00:00]} 12. exf5 {[%emt 0:00:00]} Nxf5 {[%emt 0:00:00]} 13. Bxf5 {[%emt 0:00:00]} Rxf5 {[%emt 0:00:00]} 14. Nde4 {[%emt 0:00:00]} Nb6 {[%emt 0:00:00]} 15. Qe2 {[%emt 0:00:00]} a5 {[%emt 0:00:00]} 16. Nb5 {[%emt 0:00:00]} Bf8 {[%emt 0:00:00]} 17. b3 {[%emt 0:00:00]} Be7 {[%emt 0:00:00]} 18. Be3 {[%emt 0:00:00]} Ra6 {[%emt 0:00:00]} 19. O-O {[%emt 0:00:00]} Na8 {[%emt 0:00:00]} 20. Ng3 {[%emt 0:00:00]} Rf6 {[%emt 0:00:00]} 21. b4 {[%emt 0:00:00]} b6 {[%emt 0:00:00]} 22. Nc3 {[%emt 0:00:00]} Nc7 {[%emt 0:00:00]} 23. bxc5 {[%emt 0:00:00]} bxc5 {[%emt 0:00:00]} 24. Rab1 {[%emt 0:00:00]} Ne8 {[%emt 0:00:00]} 25. Rb8 {[%emt 0:00:00]} Qd7 {[%emt 0:00:00]} 26. Rfb1 {[%emt 0:00:59]} Bd8 {[%emt 0:00:00]} 27. Nge4 {[%emt 0:02:32]} Rf8 {[%emt 0:00:00]} 28. f3 {[%emt 0:00:57]} Bc7 {[%emt 0:00:00]} 29. R8b2 {[%emt 0:00:02]} Nf6 {[%emt 0:00:00]} 30. Nxf6+ {[%emt 0:00:13]} Rxf6 {[%emt 0:00:00]} 31. Ne4 {[%emt 0:00:31]} Rf8 {[%emt 0:00:00]} 32. g4 {[%emt 0:04:35]} Qh7 {[%emt 0:00:00]} 33. Bd2 {[%emt 0:00:39]} Qd7 {[%emt 0:00:00]} 34. Kg2 {[%emt 0:00:30]} Qf7 {[%emt 0:00:00]} 35. Qd3 {[%emt 0:00:48]} Ra8 {[%emt 0:00:00]} 36. Bc3 {[%emt 0:01:01]} Ba6 37. Ng3 {[%emt 0:01:43]} Qh7 38. Ne4 {[%emt 0:00:00]} Qf7 {[%emt 0:00:00]} 39. Ng3 {[%emt 0:00:00]} Qh7 {[%emt 0:00:00]} 40. Qxh7+ {[%emt 0:00:00]} Kxh7 {[%emt 0:00:00]} 41. Ne4 {[%emt 0:29:55]} Kg7 {[%emt 0:47:00]} 42. Rb6 Bxb6 {[%emt 0:00:00]} 43. Rxb6 Bxc4 {[%emt 0:00:00]} 44. Rxd6 {[%emt 0:00:00]} Rad8 {[%emt 0:00:00]} 45. Bxe5+ {[%emt 0:00:00]} Kf7 {[%emt 0:00:00]} 46. Rf6+ {[%emt 0:00:00]} Ke8 {[%emt 0:00:00]} 47. Re6+ {[%emt 0:00:00]} Kf7 {[%emt 0:00:00]} 48. Nd6+ {[%emt 0:00:00]} Rxd6 {[%emt 0:00:00]} 49. Rxd6 {[%emt 0:00:00]} Re8 {[%emt 0:00:00]} 50. f4 {[%emt 0:00:00]} gxf4 {[%emt 0:00:00]} 51. Bxf4 {[%emt 0:00:00]} Re4 {[%emt 0:00:00]} 52. Kg3 {[%emt 0:00:00]} Rd4 {[%emt 0:00:00]} 53. Rxh6 {[%emt 0:00:00]} Bxd5 {[%emt 0:00:00]} 54. Be5 {[%emt 0:03:16]} Rd3+ {[%emt 0:00:00]} 55. Kf4 {[%emt 0:00:01]} Rf3+ {[%emt 0:00:00]} 56. Kg5 {[%emt 0:00:02]} Rxa3 {[%emt 0:00:00]} 57. Rf6+ {[%emt 0:00:29]} Kg8 {[%emt 0:00:00]} 58. Bd6 {[%emt 0:00:58]} Rf3 {[%emt 0:00:00]} 59. Rg6+ {[%emt 0:00:39]} Kh7 {[%emt 0:00:00]} 60. Be5 {[%emt 0:01:20]} Re3 {[%emt 0:00:00]} 61. Rg7+ {[%emt 0:00:27]} Kh8 {[%emt 0:00:00]} 62. Bf6 {[%emt 0:00:12]} Rd3 {[%emt 0:00:00]} 63. Kh6 {[%emt 0:00:17]} Rf3 {[%emt 0:00:00]} 64. g5 {[%emt 0:00:34]} 1-0

[Event "XIV American Continental-ch 2019"]
[Site "Sao Paulo"]
[Date "2019.07.06"]
[Round "2.1"]
[White "Iturrizaga Bonelli, Eduardo"]
[Black "Abdalla, Luiz Guilherme Aurel"]
[Result "1-0"]
[ECO "A16"]
[WhiteElo "2625"]
[BlackElo "2245"]
[Annotator "RC"]
[PlyCount "89"]
[EventDate "2019.07.05"]
[EventType "swiss"]
[EventCountry "BRA"]
[SourceTitle "playchess.com"]
[Source "ChessBase"]
[SourceQuality "1"]
[TimeControl "40/5400+30:1800+30"]

1. c4 {[%emt 0:12:37]} Nf6 {[%emt 0:00:42]} 2. Nc3 {[%emt 0:00:46]} c6 {[%emt 0:03:53]} 3. e4 {[%emt 0:02:17]} d5 {[%emt 0:05:56]} 4. e5 {[%emt 0:02:01]} Ne4 {[%emt 0:00:06]} 5. Nf3 {[%emt 0:00:47]} Qb6 {[%emt 0:16:45]} 6. d4 {[%emt 0:00:24]} e6 {[%emt 0:03:45]} 7. Bd3 {[%emt 0:06:09]} Bb4 {[%emt 0:03:15]} 8. O-O {[%emt 0:05:38]} Nxc3 {[%emt 0:03:04]} 9. bxc3 {[%emt 0:00:04]} dxc4 {[%emt 0:00:06]} 10. Rb1 {[%emt 0:10:58]} cxd3 {[%emt 0:01:28]} 11. Rxb4 {[%emt 0:00:05]} Qc7 {[%emt 0:02:14]} 12. Ba3 {[%emt 0:00:58]} b6 {[%emt 0:00:39]} 13. Rb1 {[%emt 0:03:00]} c5 {[%emt 0:09:06]} 14. dxc5 {[%emt 0:00:11]} bxc5 {[%emt 0:25:09]} 15. Qxd3 {[%emt 0:00:37]} Nd7 {[%emt 0:04:08]} 16. Rfd1 {[%emt 0:08:45]} h6 {[%emt 0:04:34]} 17. Qd6 {[%emt 0:07:22]} Qxd6 {[%emt 0:00:19]} 18. Rxd6 {[%emt 0:00:04]} O-O {[%emt 0:02:37]} 19. Rc6 {[%emt 0:00:19]} Rd8 {[%emt 0:01:51]} 20. h4 {[%emt 0:05:55]} a5 {[%emt 0:07:09]} 21. Bxc5 {[%emt 0:05:15]} Nxc5 {[%emt 0:00:07]} 22. Rxc5 {[%emt 0:00:04]} a4 {[%emt 0:01:17]} 23. Kf1 {[%emt 0:04:04]} Ba6+ {[%emt 0:00:53]} 24. Ke1 {[%emt 0:00:05]} Bd3 {[%emt 0:01:08]} 25. Rb4 {[%emt 0:00:04]} a3 {[%emt 0:00:14]} 26. Nd4 {[%emt 0:01:18]} Rd5 {[%emt 0:00:37]} 27. Nb3 {[%emt 0:03:35]} Rad8 {[%emt 0:01:28]} 28. Rxd5 {[%emt 0:03:35]} Rxd5 {[%emt 0:00:09]} 29. f4 {[%emt 0:00:03]} Bb1 {[%emt 0:00:54]} 30. Nd4 {[%emt 0:07:42]} Bxa2 {[%emt 0:00:03]} 31. Ra4 {[%emt 0:00:04]} h5 {[%emt 0:00:04]} 32. Rxa3 {[%emt 0:00:17]} Bc4 {[%emt 0:00:36]} 33. g3 {[%emt 0:01:51]} Rd7 {[%emt 0:00:59]} 34. Kd2 {[%emt 0:00:24]} Rb7 {[%emt 0:00:22]} 35. Ra8+ {[%emt 0:01:47]} Kh7 {[%emt 0:00:05]} 36. Rc8 {[%emt 0:00:03]} Bf1 {[%emt 0:00:37]} 37. c4 {[%emt 0:01:46]} Rb2+ {[%emt 0:00:42]} 38. Ke3 {[%emt 0:00:53]} Rg2 {[%emt 0:00:52]} 39. c5 {[%emt 0:04:16]} Rxg3+ {[%emt 0:00:19]} 40. Kf2 {[%emt 0:00:03]} Rd3 {[%emt 0:00:02]} 41. Rd8 {[%emt 0:31:29]} Rd1 {[%emt 0:30:05]} 42. Nxe6 {[%emt 0:02:34]} Rc1 {[%emt 0:00:32]} 43. Nf8+ {[%emt 0:00:00]} Kg8 {[%emt 0:00:00]} 44. f5 {[%emt 0:00:00]} g6 {[%emt 0:00:00]} 45. Ne6+ {[%emt 0:00:00]} 1-0

[Event "XIV American Continental-ch 2019"]
[Site "Sao Paulo"]
[Date "2019.07.06"]
[Round "2.2"]
[White "Filgueiras, Nathan Felipe"]
[Black "Leitao, Rafael"]
[Result "0-1"]
[ECO "B90"]
[WhiteElo "2259"]
[BlackElo "2616"]
[Annotator "RC"]
[PlyCount "154"]
[EventDate "2019.07.05"]
[EventType "swiss"]
[EventCountry "BRA"]
[SourceTitle "playchess.com"]
[Source "ChessBase"]
[SourceQuality "1"]
[TimeControl "40/5400+30:1800+30"]

1. e4 {[%emt 0:00:00]} c5 {[%emt 0:01:53]} 2. Nf3 {[%emt 0:00:00]} d6 {[%emt 0:00:05]} 3. d4 {[%emt 0:00:00]} cxd4 {[%emt 0:00:04]} 4. Nxd4 {[%emt 0:00:00]} Nf6 {[%emt 0:00:06]} 5. Nc3 {[%emt 0:00:00]} a6 {[%emt 0:00:05]} 6. Be3 {[%emt 0:00:33]} e5 {[%emt 0:00:18]} 7. Nb3 {[%emt 0:00:08]} Be6 {[%emt 0:00:14]} 8. f3 {[%emt 0:00:04]} h5 {[%emt 0:00:08]} 9. Nd5 {[%emt 0:05:07]} Bxd5 {[%emt 0:03:24]} 10. exd5 {[%emt 0:00:07]} Nbd7 {[%emt 0:00:10]} 11. Be2 {[%emt 0:07:51]} g6 {[%emt 0:01:57]} 12. O-O {[%emt 0:02:43]} Bg7 {[%emt 0:00:46]} 13. c4 {[%emt 0:02:49]} b6 {[%emt 0:06:23]} 14. h3 {[%emt 0:18:05]} h4 {[%emt 0:11:22]} 15. f4 {[%emt 0:24:36]} Ne4 {[%emt 0:03:20]} 16. fxe5 {[%emt 0:00:34]} dxe5 {[%emt 0:02:46]} 17. Bd3 {[%emt 0:05:00]} Ng3 {[%emt 0:02:11]} 18. Re1 {[%emt 0:00:20]} O-O {[%emt 0:00:44]} 19. Qd2 {[%emt 0:08:56]} Re8 {[%emt 0:05:34]} 20. Rac1 {[%emt 0:05:43]} a5 {[%emt 0:18:42]} 21. a4 {[%emt 0:05:58]} e4 {[%emt 0:06:38]} 22. Bb1 {[%emt 0:01:08]} Nf5 {[%emt 0:02:37]} 23. Bg5 {[%emt 0:01:52]} Bf6 {[%emt 0:05:27]} 24. Bxf6 {[%emt 0:00:17]} Nxf6 {[%emt 0:01:14]} 25. Nd4 {[%emt 0:01:03]} Ng3 {[%emt 0:05:11]} 26. Qf2 {[%emt 0:02:44]} Nd7 {[%emt 0:01:50]} 27. Qf4 {[%emt 0:02:37]} Qf6 {[%emt 0:08:18]} 28. Qxf6 {[%emt 0:01:03]} Nxf6 {[%emt 0:00:05]} 29. Re3 {[%emt 0:00:44]} Rac8 {[%emt 0:02:07]} 30. Nc6 {[%emt 0:01:50]} Nd7 {[%emt 0:00:09]} 31. b3 {[%emt 0:01:10]} Nc5 {[%emt 0:00:34]} 32. Nd4 {[%emt 0:00:15]} f5 {[%emt 0:00:36]} 33. Ree1 {[%emt 0:00:29]} Kg7 {[%emt 0:02:07]} 34. Rc3 {[%emt 0:01:15]} Kf6 {[%emt 0:00:22]} 35. Ne2 {[%emt 0:01:09]} Nxe2+ {[%emt 0:00:44]} 36. Rxe2 {[%emt 0:00:02]} Ke5 {[%emt 0:00:47]} 37. Rd2 {[%emt 0:00:23]} Kd6 {[%emt 0:02:26]} 38. Bc2 {[%emt 0:01:32]} f4 {[%emt 0:02:58]} 39. Bd1 {[%emt 0:00:31]} Re5 {[%emt 0:00:15]} 40. Bg4 {[%emt 0:00:31]} Rf8 {[%emt 0:00:22]} 41. Rd1 {[%emt 0:30:45]} g5 {[%emt 0:32:34]} 42. Kf1 {[%emt 0:00:00]} Rf6 {[%emt 0:00:00]} 43. Rb1 {[%emt 0:00:00]} Na6 {[%emt 0:00:00]} 44. Rd1 {[%emt 0:00:00]} Kc5 {[%emt 0:00:00]} 45. Be6 {[%emt 0:00:00]} Kb4 {[%emt 0:00:00]} 46. Rcc1 {[%emt 0:00:00]} Nc5 {[%emt 0:00:00]} 47. Bg4 {[%emt 0:00:00]} Nxb3 {[%emt 0:00:00]} 48. Rb1 {[%emt 0:00:00]} Kc3 {[%emt 0:00:00]} 49. d6 {[%emt 0:00:00]} Rf8 {[%emt 0:00:00]} 50. d7 {[%emt 0:00:00]} Rd8 {[%emt 0:00:00]} 51. Ke1 {[%emt 0:00:00]} Kc2 {[%emt 0:00:00]} 52. Ke2 {[%emt 0:00:00]} Rc5 {[%emt 0:00:00]} 53. Be6 {[%emt 0:00:50]} Nd4+ {[%emt 0:01:40]} 54. Rxd4 {[%emt 0:00:02]} Kxb1 {[%emt 0:00:06]} 55. Rxe4 {[%emt 0:00:05]} Kc2 {[%emt 0:00:24]} 56. Bg4 {[%emt 0:00:50]} Rc7 {[%emt 0:00:14]} 57. Re8 {[%emt 0:00:37]} Rdxd7 {[%emt 0:00:12]} 58. Bxd7 {[%emt 0:00:01]} Rxd7 {[%emt 0:00:08]} 59. Re6 {[%emt 0:03:44]} Rd2+ {[%emt 0:00:48]} 60. Kf3 {[%emt 0:01:00]} Rd3+ {[%emt 0:00:15]} 61. Kf2 {[%emt 0:00:37]} Kb3 {[%emt 0:01:08]} 62. Rxb6+ {[%emt 0:01:01]} Kxc4 {[%emt 0:00:16]} 63. Rb5 {[%emt 0:00:26]} Rd5 {[%emt 0:00:05]} 64. Rb6 {[%emt 0:00:05]} Rd2+ {[%emt 0:00:23]} 65. Kf3 {[%emt 0:00:37]} Rd3+ {[%emt 0:00:38]} 66. Kf2 {[%emt 0:00:05]} Rb3 {[%emt 0:02:23]} 67. Rg6 {[%emt 0:00:22]} Kb4 {[%emt 0:00:51]} 68. Rxg5 {[%emt 0:00:23]} Kxa4 {[%emt 0:00:03]} 69. Rg4 {[%emt 0:00:49]} Rb4 {[%emt 0:00:17]} 70. Rxh4 {[%emt 0:01:26]} Kb3 {[%emt 0:00:06]} 71. Rh8 {[%emt 0:00:05]} a4 {[%emt 0:00:05]} 72. Ra8 {[%emt 0:00:30]} a3 {[%emt 0:00:03]} 73. g4 {[%emt 0:02:09]} fxg3+ {[%emt 0:00:26]} 74. Kxg3 {[%emt 0:00:02]} a2 {[%emt 0:00:08]} 75. Rxa2 {[%emt 0:00:13]} Kxa2 {[%emt 0:00:04]} 76. h4 {[%emt 0:00:16]} Kb3 {[%emt 0:00:04]} 77. h5 {[%emt 0:00:05]} Kc3 {[%emt 0:00:17]} 0-1

[Event "XIV American Continental-ch 2019"]
[Site "Sao Paulo"]
[Date "2019.07.06"]
[Round "2.3"]
[White "Delgado Ramirez, Neuris"]
[Black "Tsuboi, Edson Kenji"]
[Result "1-0"]
[ECO "B47"]
[WhiteElo "2605"]
[BlackElo "2233"]
[Annotator "RC"]
[PlyCount "63"]
[EventDate "2019.07.05"]
[EventType "swiss"]
[EventCountry "BRA"]
[SourceTitle "playchess.com"]
[Source "ChessBase"]
[SourceQuality "1"]
[TimeControl "40/5400+30:1800+30"]

1. e4 {[%emt 0:29:46]} c5 {[%emt 0:00:00]} 2. Nf3 {[%emt 0:00:08]} e6 {[%emt 0:00:03]} 3. d4 {[%emt 0:00:05]} cxd4 {[%emt 0:00:05]} 4. Nxd4 {[%emt 0:00:04]} Nc6 {[%emt 0:00:11]} 5. Nc3 {[%emt 0:00:06]} Qc7 {[%emt 0:01:30]} 6. a3 {[%emt 0:00:08]} a6 {[%emt 0:00:29]} 7. Be3 {[%emt 0:00:10]} Nf6 {[%emt 0:01:12]} 8. f4 {[%emt 0:02:20]} d6 {[%emt 0:08:57]} 9. Qf3 {[%emt 0:00:09]} Bd7 {[%emt 0:07:47]} 10. O-O-O {[%emt 0:00:29]} Nxd4 {[%emt 0:10:43]} 11. Bxd4 {[%emt 0:00:49]} Bc6 {[%emt 0:00:58]} 12. Bxf6 {[%emt 0:01:02]} gxf6 {[%emt 0:00:07]} 13. f5 {[%emt 0:00:07]} Qe7 {[%emt 0:07:09]} 14. Bc4 {[%emt 0:01:14]} O-O-O {[%emt 0:01:02]} 15. Rhe1 {[%emt 0:00:21]} h5 {[%emt 0:05:09]} 16. Na2 {[%emt 0:09:36]} h4 {[%emt 0:16:10]} 17. Nb4 {[%emt 0:00:41]} Kc7 {[%emt 0:08:31]} 18. Qc3 {[%emt 0:05:14]} Bh6+ {[%emt 0:05:20]} 19. Kb1 {[%emt 0:00:30]} Bf4 {[%emt 0:05:45]} 20. Bxa6 {[%emt 0:07:45]} Be5 {[%emt 0:01:11]} 21. Qc4 {[%emt 0:00:24]} Qd7 {[%emt 0:05:53]} 22. Bb5 {[%emt 0:01:12]} Ra8 {[%emt 0:06:08]} 23. Bxc6 {[%emt 0:01:27]} bxc6 {[%emt 0:00:06]} 24. fxe6 {[%emt 0:00:11]} fxe6 {[%emt 0:00:12]} 25. Na6+ {[%emt 0:00:04]} Kd8 {[%emt 0:05:13]} 26. Nc5 {[%emt 0:00:14]} Qa7 {[%emt 0:01:16]} 27. Nxe6+ {[%emt 0:00:39]} Ke7 {[%emt 0:00:12]} 28. Nd4 {[%emt 0:00:08]} Bxd4 {[%emt 0:00:23]} 29. Rxd4 {[%emt 0:01:14]} Rhb8 {[%emt 0:00:09]} 30. Rd3 {[%emt 0:00:56]} Rb6 {[%emt 0:01:09]} 31. e5 {[%emt 0:01:31]} fxe5 {[%emt 0:00:48]} 32. Qxh4+ {[%emt 0:00:08]} 1-0

[Event "XIV American Continental-ch 2019"]
[Site "Sao Paulo"]
[Date "2019.07.06"]
[Round "2.4"]
[White "Bouwman, Marcelo Wanderley"]
[Black "Gareyev, Timur"]
[Result "0-1"]
[ECO "B67"]
[WhiteElo "2234"]
[BlackElo "2588"]
[Annotator "RC"]
[PlyCount "76"]
[EventDate "2019.07.05"]
[EventType "swiss"]
[EventCountry "BRA"]
[SourceTitle "playchess.com"]
[Source "ChessBase"]
[SourceQuality "1"]
[TimeControl "40/5400+30:1800+30"]

1. e4 {[%emt 0:00:00]} c5 {[%emt 0:00:14]} 2. Nf3 {[%emt 0:00:47]} Nc6 {[%emt 0:00:11]} 3. d4 {[%emt 0:00:32]} cxd4 {[%emt 0:00:05]} 4. Nxd4 {[%emt 0:00:12]} Nf6 {[%emt 0:00:04]} 5. Nc3 {[%emt 0:00:12]} d6 {[%emt 0:00:04]} 6. Bg5 {[%emt 0:01:31]} e6 {[%emt 0:00:09]} 7. Qd2 {[%emt 0:00:45]} a6 {[%emt 0:00:49]} 8. O-O-O {[%emt 0:01:51]} Bd7 {[%emt 0:01:15]} 9. f4 {[%emt 0:01:43]} b5 {[%emt 0:00:26]} 10. a3 {[%emt 0:11:03]} Qb6 {[%emt 0:24:43]} 11. Be2 {[%emt 0:21:52]} Rb8 {[%emt 0:19:43]} 12. Nb3 {[%emt 0:13:07]} Qc7 {[%emt 0:04:38]} 13. Rhe1 {[%emt 0:04:00]} Be7 {[%emt 0:02:25]} 14. Bf3 {[%emt 0:08:16]} h6 {[%emt 0:01:08]} 15. Bh4 {[%emt 0:09:56]} Rd8 {[%emt 0:02:37]} 16. g4 {[%emt 0:06:31]} g5 {[%emt 0:01:09]} 17. Bg3 {[%emt 0:00:45]} gxf4 {[%emt 0:00:23]} 18. Bxf4 {[%emt 0:00:15]} Ne5 {[%emt 0:00:15]} 19. Be2 {[%emt 0:01:41]} Bc6 {[%emt 0:02:06]} 20. h3 {[%emt 0:02:06]} h5 {[%emt 0:04:02]} 21. g5 {[%emt 0:02:09]} Nfd7 {[%emt 0:01:34]} 22. Kb1 {[%emt 0:03:00]} Rb8 {[%emt 0:04:04]} 23. Nd4 {[%emt 0:01:35]} Ba8 {[%emt 0:00:39]} 24. Nf3 {[%emt 0:02:44]} Nf8 {[%emt 0:00:53]} 25. Rf1 {[%emt 0:03:45]} Nfg6 {[%emt 0:00:05]} 26. Be3 {[%emt 0:00:13]} Nc4 {[%emt 0:02:25]} 27. Bxc4 {[%emt 0:00:29]} Qxc4 {[%emt 0:00:03]} 28. Qd4 {[%emt 0:00:47]} O-O {[%emt 0:00:38]} 29. b3 {[%emt 0:01:37]} Qxd4 {[%emt 0:00:58]} 30. Nxd4 {[%emt 0:00:06]} Rfc8 {[%emt 0:00:15]} 31. Nde2 {[%emt 0:00:19]} Rc7 {[%emt 0:00:26]} 32. Bd2 {[%emt 0:00:55]} a5 {[%emt 0:00:12]} 33. a4 {[%emt 0:00:18]} bxa4 {[%emt 0:00:01]} 34. Nxa4 {[%emt 0:00:21]} Bxe4 {[%emt 0:00:03]} 35. Nd4 {[%emt 0:00:56]} Rc4 {[%emt 0:00:43]} 36. Ka2 {[%emt 0:00:53]} Rxd4 {[%emt 0:00:03]} 37. c3 {[%emt 0:00:21]} Rd3 {[%emt 0:01:02]} 38. Rf2 {[%emt 0:00:22]} Rxh3 {[%emt 0:00:17]} 0-1

[Event "XIV American Continental-ch 2019"]
[Site "Sao Paulo"]
[Date "2019.07.06"]
[Round "2.5"]
[White "Pichot, Alan"]
[Black "Jodorcovsky Werjivker, Paulo"]
[Result "1-0"]
[ECO "B40"]
[WhiteElo "2579"]
[BlackElo "2228"]
[Annotator "RC"]
[PlyCount "109"]
[EventDate "2019.07.05"]
[EventType "swiss"]
[EventCountry "BRA"]
[SourceTitle "playchess.com"]
[Source "ChessBase"]
[SourceQuality "1"]
[TimeControl "40/5400+30:1800+30"]

1. e4 {[%emt 0:11:28]} c5 {[%emt 0:00:00]} 2. Nf3 {[%emt 0:00:05]} e6 {[%emt 0:00:00]} 3. d4 {[%emt 0:00:05]} cxd4 {[%emt 0:00:00]} 4. Nxd4 {[%emt 0:00:07]} Nf6 {[%emt 0:00:00]} 5. Nc3 {[%emt 0:00:29]} Nc6 {[%emt 0:00:04]} 6. Nxc6 {[%emt 0:00:33]} bxc6 {[%emt 0:00:05]} 7. e5 {[%emt 0:00:07]} Nd5 {[%emt 0:00:05]} 8. Ne4 {[%emt 0:00:04]} Bb7 {[%emt 0:01:27]} 9. Be2 {[%emt 0:00:30]} c5 {[%emt 0:00:59]} 10. O-O {[%emt 0:01:25]} Qc7 {[%emt 0:00:54]} 11. Nd6+ {[%emt 0:00:26]} Bxd6 {[%emt 0:00:09]} 12. exd6 {[%emt 0:00:05]} Qc6 {[%emt 0:00:38]} 13. f3 {[%emt 0:00:43]} c4 {[%emt 0:01:02]} 14. Qd4 {[%emt 0:00:55]} O-O {[%emt 0:00:06]} 15. Bxc4 {[%emt 0:01:07]} Rfc8 {[%emt 0:03:27]} 16. b3 {[%emt 0:03:41]} Qxd6 {[%emt 0:04:13]} 17. Kh1 {[%emt 0:06:26]} Qb6 {[%emt 0:05:49]} 18. Qe5 {[%emt 0:01:24]} f6 {[%emt 0:23:44]} 19. Qg3 {[%emt 0:19:55]} Kh8 {[%emt 0:05:47]} 20. Qh4 {[%emt 0:09:31]} Ba6 {[%emt 0:12:06]} 21. Bxa6 {[%emt 0:18:17]} Qxa6 {[%emt 0:00:04]} 22. c4 {[%emt 0:00:09]} Ne7 {[%emt 0:01:24]} 23. Bb2 {[%emt 0:00:48]} d5 {[%emt 0:10:18]} 24. cxd5 {[%emt 0:00:16]} Nxd5 {[%emt 0:00:24]} 25. Qe4 {[%emt 0:00:08]} Re8 {[%emt 0:08:19]} 26. f4 {[%emt 0:01:13]} Rad8 {[%emt 0:07:41]} 27. Rf3 {[%emt 0:00:54]} Qd6 {[%emt 0:04:10]} 28. Rh3 {[%emt 0:05:02]} h6 {[%emt 0:01:15]} 29. Rf1 {[%emt 0:00:53]} Qf8 {[%emt 0:02:01]} 30. g4 {[%emt 0:01:49]} Kg8 {[%emt 0:02:32]} 31. Rd3 {[%emt 0:02:33]} Qf7 {[%emt 0:03:02]} 32. h3 {[%emt 0:04:41]} f5 {[%emt 0:01:35]} 33. Qf3 {[%emt 0:06:30]} Nf6 {[%emt 0:00:55]} 34. Re3 {[%emt 0:00:01]} Ne4 {[%emt 0:00:34]} 35. Rg1 {[%emt 0:01:18]} Rd2 {[%emt 0:01:06]} 36. Re2 {[%emt 0:00:16]} Red8 {[%emt 0:00:43]} 37. gxf5 exf5 {[%emt 0:01:00]} 38. Bxg7 {[%emt 0:04:23]} Rxe2 {[%emt 0:00:37]} 39. Qxe2 {[%emt 0:00:29]} Kh7 {[%emt 0:00:22]} 40. Be5 {[%emt 0:00:40]} Rg8 {[%emt 0:00:46]} 41. Rxg8 {[%emt 0:04:59]} Qxg8 {[%emt 0:00:48]} 42. Qa6 {[%emt 0:04:14]} Qa8 {[%emt 0:11:34]} 43. Kg1 {[%emt 0:02:07]} Nd2 {[%emt 0:04:05]} 44. Qe6 {[%emt 0:03:49]} Nf3+ {[%emt 0:01:20]} 45. Kf2 {[%emt 0:00:05]} Nxe5 {[%emt 0:00:32]} 46. Qxf5+ {[%emt 0:00:05]} Kg8 {[%emt 0:08:14]} 47. fxe5 {[%emt 0:00:08]} Qc6 {[%emt 0:01:26]} 48. e6 {[%emt 0:01:25]} Qb6+ {[%emt 0:00:10]} 49. Ke2 {[%emt 0:00:09]} Qa6+ {[%emt 0:00:19]} 50. Ke3 {[%emt 0:00:12]} Qb6+ {[%emt 0:00:16]} 51. Kd2 {[%emt 0:00:26]} Qd6+ {[%emt 0:00:43]} 52. Kc3 {[%emt 0:00:24]} Qc7+ {[%emt 0:00:21]} 53. Kb2 {[%emt 0:00:32]} Qh2+ {[%emt 0:00:08]} 54. Ka3 {[%emt 0:00:19]} Qd6+ {[%emt 0:00:16]} 55. b4 {[%emt 0:00:10]} 1-0

[Event "XIV American Continental-ch 2019"]
[Site "Sao Paulo"]
[Date "2019.07.06"]
[Round "2.6"]
[White "Cherniack, Alex"]
[Black "Mecking, Henrique"]
[Result "0-1"]
[ECO "D97"]
[WhiteElo "2231"]
[BlackElo "2576"]
[Annotator "RC"]
[PlyCount "66"]
[EventDate "2019.07.05"]
[EventType "swiss"]
[EventCountry "BRA"]
[SourceTitle "playchess.com"]
[Source "ChessBase"]
[SourceQuality "1"]
[TimeControl "40/5400+30:1800+30"]

1. d4 {[%emt 0:00:00]} Nf6 {[%emt 0:01:01]} 2. c4 {[%emt 0:00:00]} g6 {[%emt 0:00:09]} 3. Nc3 {[%emt 0:00:19]} d5 {[%emt 0:00:09]} 4. Nf3 {[%emt 0:00:32]} Bg7 {[%emt 0:00:12]} 5. Qb3 {[%emt 0:00:26]} dxc4 {[%emt 0:00:05]} 6. Qxc4 {[%emt 0:00:06]} O-O {[%emt 0:00:05]} 7. e4 {[%emt 0:00:09]} a6 {[%emt 0:00:04]} 8. Be2 {[%emt 0:02:38]} b5 {[%emt 0:00:18]} 9. Qb3 {[%emt 0:00:05]} Nc6 {[%emt 0:00:58]} 10. d5 {[%emt 0:08:29]} Na5 {[%emt 0:00:47]} 11. Qc2 {[%emt 0:00:12]} c6 {[%emt 0:07:10]} 12. dxc6 Nxc6 {[%emt 0:04:38]} 13. Nxb5 {[%emt 0:16:19]} Nb4 {[%emt 0:10:17]} 14. Qb3 {[%emt 0:06:47]} Nxa2 {[%emt 0:05:39]} 15. Qxa2 {[%emt 0:13:08]} Be6 {[%emt 0:01:04]} 16. Qa5 {[%emt 0:01:14]} axb5 {[%emt 0:00:53]} 17. Qxd8 {[%emt 0:00:13]} Rfxd8 {[%emt 0:00:09]} 18. Rxa8 {[%emt 0:10:07]} Rxa8 {[%emt 0:00:15]} 19. e5 {[%emt 0:10:13]} Nd7 {[%emt 0:06:05]} 20. Nd4 {[%emt 0:01:28]} Bd5 {[%emt 0:07:27]} 21. Nxb5 {[%emt 0:05:57]} Bxg2 {[%emt 0:05:47]} 22. Rg1 {[%emt 0:00:05]} Ra1 {[%emt 0:00:51]} 23. Rxg2 {[%emt 0:02:24]} Rxc1+ {[%emt 0:00:06]} 24. Kd2 {[%emt 0:00:03]} Bh6+ {[%emt 0:00:19]} 25. Kd3 {[%emt 0:00:34]} Nc5+ {[%emt 0:04:10]} 26. Kd4 {[%emt 0:00:29]} Ne6+ {[%emt 0:00:05]} 27. Ke4 {[%emt 0:00:50]} Nf4 {[%emt 0:00:26]} 28. Bf3 {[%emt 0:00:07]} Re1+ {[%emt 0:00:40]} 29. Kd4 {[%emt 0:00:16]} Nxg2 {[%emt 0:00:07]} 30. Bxg2 {[%emt 0:00:04]} Bf4 {[%emt 0:00:09]} 31. b4 {[%emt 0:01:20]} Bxe5+ {[%emt 0:00:14]} 32. Kd5 {[%emt 0:00:54]} Bxh2 {[%emt 0:00:15]} 33. Nd4 {[%emt 0:00:18]} Bg1 {[%emt 0:00:43]} 0-1